Cogmind - Beta 13 X1 @@@ ROGUE MODE // 2023.07.31 @ 22:16:31 Player: Runia Result: Destroyed by P-70 Sage with Tesla Rifle Performance ------------- Evolutions (6) 3000 Regions Visited (23) 4600 Robots Destroyed (307) 1535 Value Destroyed (16178) 16178 Prototype IDs (36) 720 Alien Tech Used (0) 0 Bonus (9355) 9355 TOTAL SCORE: 35388 Bonus ------- High Alert Combat Kills 2748 Follower Combat Kills 1593 Entered Garrisons 1800 Used RIF Installer 4500 Aligned with FarCom 300 Friendly Fire -1586 Cogmind --------- Core Integrity 0/1150 Matter 263/300 Energy 190/190 System Corruption 24% Temperature Cool (80) Movement Treading (225) Ox1 Location -4/Factory Parts ------- > --- POWER (2) -------- Light Quantum Reactor (fused) > --- PROPULSION (4) --- Advanced Medium Treads Advanced Medium Treads Advanced Medium Treads Centrium Wheel > --- UTILITY (11) ----- Advanced Coolant Injector Huge Storage Unit Experimental Terrain Scan Processor Advanced Targeting Computer Improved Medium Armor Plating Relay Coupler [NC] (30) Relay Coupler [Swarmer] (25) Relay Coupler [Grunt] (21) Relay Coupler [Sentry] (19) Relay Coupler [Hunter] (6) Relay Coupler [Behemoth] (12) > --- WEAPON (2) ------- Matter Neutralizer Improved Remote Datajack > --- INVENTORY (25) --- Advanced Cooling System Energy Well (350) Energy Well (350) Quantum Capacitor Improved Medium Armor Plating Improved Remote Shield Advanced Hacking Suite Relay Coupler [NC] (24) Relay Coupler [NC] (24) Relay Coupler [NC] (27) Relay Coupler [Swarmer] (36) Relay Coupler [Grunt] (35) Relay Coupler [Grunt] (31) Relay Coupler [Sentry] (26) Relay Coupler [Sentry] (19) Relay Coupler [Proto] Relay Coupler [Proto] Relay Coupler [Proto] Relay Coupler [Proto] Compact HERF Cannon Compact HERF Cannon Heavy Linear Accelerator Peak State ------------ > --- POWER ------------ Neutrino Core Particle Reactor > --- PROPULSION ------- Improved Heavy Treads Improved Heavy Treads > --- UTILITY ---------- Huge Storage Unit Experimental Terrain Scan Processor Advanced Targeting Computer Layered Heavy Armor Plating Advanced Thermal Defense Suite Advanced Force Field Relay Coupler [NC] Relay Coupler [Swarmer] Relay Coupler [Grunt] Relay Coupler [Sentry] > --- WEAPON ----------- Proton Cannon Advanced Remote Datajack > --- INVENTORY -------- Light Antimatter Reactor Improved Cooling System Advanced Cooling System Energy Well Energy Well Quantum Capacitor Advanced Transmission Jammer Advanced Force Field Advanced Hacking Suite Relay Coupler [NC] Relay Coupler [NC] Relay Coupler [NC] Relay Coupler [Swarmer] Relay Coupler [Hunter] Relay Coupler [Proto] Relay Coupler [Proto] Relay Coupler [Proto] Relay Coupler [Proto] Long-range Proton Cannon Long-range Proton Cannon Enhanced Nova Cannon Field Lobotomy Kit Power Maul [Rating: 120] Favorites ----------- Power Light Quantum Reactor Engine Improved Ion Engine Power Core Fission Core Reactor Light Quantum Reactor Propulsion Light Treads Treads Light Treads Leg Aluminum Leg Wheel Wheel Flight Unit Improved Surge Thruster Utility Huge Storage Unit Device Disposable Heat Sink Storage Huge Storage Unit Processor Advanced Targeting Computer Hackware Relay Coupler [Swarmer] Protection Improved Medium Armor Plating Weapon Enhanced Autogun Energy Gun Medium Laser Energy Cannon Plasma Cannon Ballistic Gun Enhanced Autogun Ballistic Cannon Heavy Mass Driver Launcher Improved Grenade Launcher Special Weapon Advanced Remote Datajack Impact Weapon Power Maul Slashing Weapon Mining Claw Piercing Weapon Force Lance Build | -11 -10 -10 -10 -9 -8 -8 -8 -8 -8 -8 -7 -7 -6 -6 -6 -6 -5 -5 -5 -5 -4 -4 -4 ------- Run | Jun Mat Min Exi Min Mat Gar Mat Gar Mat Gar Fac Gar Fac Gar Fac Gar Fac Gar Fac Gar Fac Gar Fac Slots Evolved 12 | . . . . . 4 . . . . . 2 . 2 . . . 2 . . . 2 . . Power 1 | . . . . . . . . . . . . . 1 . . . . . . . . . . Propulsion 2 | . . . . . 1 . . . . . . . 1 . . . . . . . . . . Utility 9 | . . . . . 3 . . . . . 2 . . . . . 2 . . . 2 . . Weapon . | . . . . . . . . . . . . . . . . . . . . . . . . Parts Attached 405 | 2 3 16 . 5 31 24 . 22 17 18 8 25 10 17 2 32 4 44 9 18 33 35 30 Power 39 | . . 3 . 1 1 1 . 1 . 2 3 1 2 2 . 8 . 4 . 1 4 1 4 Engine 21 | . . 3 . 1 1 . . . . . 3 . 2 1 . 7 . . . . . . 3 Core 8 | . . . . . . 1 . 1 . 2 . . . . . . . 1 . 1 2 . . Reactor 10 | . . . . . . . . . . . . 1 . 1 . 1 . 3 . . 2 1 1 Propulsion 65 | 2 1 5 . . 5 1 . 6 4 1 . 5 1 1 . 1 . 9 . 2 5 2 14 Treads 49 | 2 1 2 . . 4 1 . 4 4 1 . 4 1 1 . 1 . 9 . 2 . 1 11 Leg . | . . . . . . . . . . . . . . . . . . . . . . . . Wheel 15 | . . 3 . . 1 . . 2 . . . 1 . . . . . . . . 4 1 3 Hover . | . . . . . . . . . . . . . . . . . . . . . . . . Flight 1 | . . . . . . . . . . . . . . . . . . . . . 1 . . Utility 117 | . 2 2 . 1 11 1 . 2 4 5 5 1 2 7 2 13 3 12 5 7 13 15 4 Device 50 | . 1 1 . 1 5 . . 1 2 4 1 . 1 2 . 7 1 5 2 2 7 7 . Storage 4 | . 1 1 . . 1 . . . . . 1 . . . . . . . . . . . . Processor 8 | . . . . . 2 . . . . . 2 . . 3 . . . . . . 1 . . Hackware 28 | . . . . . . . . . . . . . . . 2 4 1 4 2 2 3 8 2 Protection 27 | . . . . . 3 1 . 1 2 1 1 1 1 2 . 2 1 3 1 3 2 . 2 Artifact . | . . . . . . . . . . . . . . . . . . . . . . . . Weapon 184 | . . 6 . 3 14 21 . 13 9 10 . 18 5 7 . 10 1 19 4 8 11 17 8 Energy Gun 3 | . . 1 . . . . . . . . . 1 . . . . . . . . 1 . . Energy Cannon 47 | . . . . . 4 . . 2 . . . 2 2 2 . 7 1 7 3 3 4 5 5 Ballistic Gun 49 | . . 4 . 3 6 10 . 6 6 5 . 8 . 1 . . . . . . . . . Ballistic Cannon 5 | . . . . . . . . . . . . . . . . . . . . . 2 2 1 Launcher 20 | . . . . . 3 8 . 1 . 1 . 3 1 2 . . . . . . . 1 . Special Weapon 31 | . . . . . . . . . . . . . . 1 . 3 . 10 1 4 2 8 2 Impact Weapon 25 | . . . . . . 3 . 4 3 4 . 4 2 1 . . . 2 . 1 1 . . Slashing Weapon 2 | . . 1 . . 1 . . . . . . . . . . . . . . . . . . Piercing Weapon 2 | . . . . . . . . . . . . . . . . . . . . . 1 1 . Special Melee Weapon . | . . . . . . . . . . . . . . . . . . . . . . . . Unidentified Prototypes 5 | . . . . . 1 . . . . . 2 . . . . . . . . . 2 . . Corrupted Parts 10 | . . . . . . . . 1 . . . 3 . . . . . 5 . . . 1 . System Corruption 81 | . . . . . . . . 13 . . . 24 . . . . . 31 . . . 13 . Parts Lost 62 | . . 10 . . 3 1 . 2 . . . 2 1 3 . 5 . 7 . 3 11 6 8 Power 10 | . . 2 . . . . . . . . . . . . . 1 . 3 . . 2 1 1 Propulsion 19 | . . 3 . . . 1 . 1 . . . 2 . . . . . 3 . 1 2 1 5 Utility 22 | . . 1 . . 3 . . 1 . . . . 1 2 . 3 . 1 . 2 5 2 1 Weapon 11 | . . 4 . . . . . . . . . . . 1 . 1 . . . . 2 2 1 Highest Loss Streak 5 | . . 3 . . 1 1 . 1 . . . 1 1 2 . 3 . 4 . 2 5 2 3 To Critical Strikes . | . . . . . . . . . . . . . . . . . . . . . . . . Average Slot Usage (%) 91 | . 93 99 73 100 99 99 100 99 98 99 97 96 85 85 86 83 82 79 81 86 77 90 89 Engine 4 | . 14 14 14 14 9 7 . . . . 3 . 7 6 6 9 11 2 . . . . 2 Core 2 | . . . . . . 1 9 9 9 9 3 . . . . . . 2 . 4 3 5 . Reactor 2 | . . . . . . . . . . . . 6 4 5 6 3 . 5 11 5 3 4 3 Treads 13 | . 28 14 14 14 18 17 18 18 18 18 15 11 13 13 13 13 11 10 11 11 6 . 12 Wheel 6 | . . 13 14 14 9 9 9 8 9 9 7 7 . . . . . . . . 3 20 6 Device 11 | . 7 13 14 14 13 9 9 15 18 18 15 15 15 19 13 6 5 4 7 12 8 10 7 Storage 7 | . 14 14 14 14 8 9 9 9 9 9 7 7 6 6 6 6 5 5 5 5 5 5 5 Processor 9 | . . . . . 13 18 18 11 9 9 20 23 17 13 6 6 5 5 5 5 9 10 10 Hackware 7 | . . . . . . . . . . . . . . . 11 17 16 18 17 14 20 23 28 Protection 6 | . . . . . 9 9 9 9 9 8 7 7 5 5 6 5 11 10 8 10 4 1 2 Energy Gun 1 | . 28 10 . . . . . . . . . . . . . . . . . . . . . Energy Cannon 3 | . . . . . 12 . . 1 . . . 2 3 5 6 10 11 5 4 5 4 3 3 Ballistic Gun 6 | . . 15 1 28 5 16 18 13 15 11 7 11 6 5 6 1 . . . . . . . Impact Weapon 1 | . . . . . . 1 . 3 1 6 7 . 2 . . . . 3 3 . 1 . . Naked Turns . | . . . . . . . . . . . . . . . . . . . . . . . . Heaviest Build 164 | 14 30 91 88 92 111 105 101 110 109 110 113 114 133 133 129 160 140 149 156 159 164 155 129 Greatest Support 150 | 40 40 40 10 10 10 40 10 12 12 12 12 12 150 150 150 150 150 150 150 150 150 64 120 Greatest Overweight (x) 30 | . . 9 8 9 11 10 10 10 9 9 9 9 . . . 1 . 1 1 1 30 2 7 Average Overweight (x) 4 | . . 8 8 8 9 9 10 9 8 8 8 8 . . . . . . . . 1 1 4 Largest Inventory Capacity 25 | 8 15 25 25 25 25 25 25 25 25 25 25 25 25 25 25 25 25 25 25 25 25 25 25 Average Capacity 24 | 8 14 24 25 25 24 25 25 25 25 25 25 25 25 25 25 25 25 25 25 25 25 25 25 Most Carried 25 | 6 15 16 18 25 25 25 25 25 25 25 25 25 25 25 25 25 25 25 25 25 25 25 25 Average Carried 22 | 5 10 13 15 20 23 24 25 24 24 24 24 24 24 24 23 23 23 23 24 22 23 23 24 Final Capacity 25 | 8 15 25 25 25 25 25 25 25 25 25 25 25 25 25 25 25 25 25 25 25 25 25 25 Final Carried 25 | 4 15 10 18 24 25 25 25 25 25 25 25 25 25 24 25 25 25 25 25 25 25 25 24 Class Distribution -------------------- 41% | Botlord-Mutant 31% | Mutant 24% | Scavenger-Mutant Dominant Class ---------------- Mutant | -10/Materials Mutant | -10/Mines Mutant | -10/Exiles Mutant | -9/Mines Scavenger-Mutant | -8/Materials Scavenger-Mutant | -8/Garrison Scavenger-Mutant | -8/Materials Mutant | -8/Garrison Scavenger-Mutant | -8/Materials Mutant | -8/Garrison Mutant | -7/Factory Mutant | -7/Garrison Mutant | -6/Factory Bothacker-Mutant | -6/Garrison Botlord-Mutant | -6/Factory Botlord-Mutant | -6/Garrison Botlord-Mutant | -5/Factory Botlord-Mutant | -5/Garrison Botlord-Mutant | -5/Factory Botlord-Mutant | -5/Garrison Botlord-Mutant | -4/Factory Botlord-Mutant | -4/Garrison Botlord-Mutant | -4/Factory Resources | -11 -10 -10 -10 -9 -8 -8 -8 -8 -8 -8 -7 -7 -6 -6 -6 -6 -5 -5 -5 -5 -4 -4 -4 ----------- Run | Jun Mat Min Exi Min Mat Gar Mat Gar Mat Gar Fac Gar Fac Gar Fac Gar Fac Gar Fac Gar Fac Gar Fac Matter Collected 9405 | 200 266 263 . 86 522 880 . 822 356 538 . 1261 264 423 39 455 . 625 . 686 398 743 578 Remotely . | . . . . . . . . . . . . . . . . . . . . . . . . Salvage Created 14670 | . 334 549 . . 1536 1070 . 979 507 451 51 1842 614 638 . 562 . 1245 344 1223 479 1278 968 Parts 734 | . 16 39 . . 95 68 . 49 25 25 . 86 34 41 . 27 . 38 19 37 41 50 44 Haulers Intercepted 7 | . 1 . . . 6 . . . . . . . . . . . . . . . . . . Recyclers Shooed 8 | . . . . . 2 . . . . . . . 1 . 1 . . . 2 . 1 . 1 Parts Field Recycled . | . . . . . . . . . . . . . . . . . . . . . . . . Retrieved Matter . | . . . . . . . . . . . . . . . . . . . . . . . . Parts Self-Destructed . | . . . . . . . . . . . . . . . . . . . . . . . . Prevented . | . . . . . . . . . . . . . . . . . . . . . . . . Kills | -11 -10 -10 -10 -9 -8 -8 -8 -8 -8 -8 -7 -7 -6 -6 -6 -6 -5 -5 -5 -5 -4 -4 -4 ------- Run | Jun Mat Min Exi Min Mat Gar Mat Gar Mat Gar Fac Gar Fac Gar Fac Gar Fac Gar Fac Gar Fac Gar Fac Combat Hostiles Destroyed 267 | . 10 13 . . 24 30 . 17 8 11 . 30 10 21 . 14 . 13 6 20 9 20 11 Melee 13 | . . 1 . . . . . . . . . . . . . . . 1 . . 4 6 1 Guns 105 | . 10 12 . . 6 13 . 16 8 8 . 20 1 8 . 3 . . . . . . . Cannons 67 | . . . . . 9 . . 1 . . . 1 4 5 . 10 . 6 4 7 5 10 5 AOE 56 | . . . . . 9 17 . . . 3 . 9 4 8 . . . . 2 4 . . . Classes Destroyed 20 | . 4 2 . . 6 4 . 1 . . . . 1 1 . . . . . . . . 1 Worker 7 | . . 4 . . 1 . . . . . . . . . . . . . 1 . 1 . . Builder 6 | . . . . . 3 . . . 2 . . . 1 . . . . . . . . . . Tunneler 3 | . . 3 . . . . . . . . . . . . . . . . . . . . . Hauler 7 | . 1 . . . 6 . . . . . . . . . . . . . . . . . . Recycler 7 | . . . . . 3 . . . . . 1 . 1 . . . . . . . . . 2 Operator 1 | . . . . . 1 . . . . . . . . . . . . . . . . . . Watcher 5 | . 1 . . . 2 . . . . . . . 1 . . . . . . . . . 1 Swarmer 60 | . 5 3 . . 4 6 . 4 . 3 . 15 . 9 . 7 . . . 3 . 1 . Cutter 10 | . . . . . . 3 . . . . . . . 4 . . . . . . 3 . . Saboteur 2 | . . . . . . . . . . . . . 1 . . . . . . . . . 1 Grunt 95 | . 5 10 . . 9 16 . 4 2 3 . 9 4 5 . . . 8 2 13 . 4 1 Brawler 4 | . . . . . 1 . . 1 . . . . . 1 . . . . . . . . 1 Duelist 4 | . . . . . . 1 . 2 . . . . . . . . . 1 . . . . . Sentry 42 | . . . . . 9 2 . 4 5 4 . . 3 . . 2 . 1 1 2 . 5 4 Demolisher 1 | . . . . . . . . 1 . . . . . . . . . . . . . . . Specialist 8 | . . . . . . 1 . . . 1 . . . 1 . . . 1 . . 2 . 2 Hunter 19 | . . . . . 1 . . 1 1 . . 1 1 . . 2 . . . 2 . 9 1 Programmer 22 | . . . . . . 1 . . . . . 5 1 . . 3 . 2 3 . 4 2 1 Heavy 1 | . . . . . . . . . . . . . . . . . . . . . . . 1 Striker 1 | . . . . . . . . . . . . . . 1 . . . . . . . . . Guerrilla 2 | . . . . . . . . 1 . 1 . . . . . . . . . . . . . Best Kill Streak 10 | . 5 5 . . 8 5 . 3 2 3 1 3 5 10 . 8 . 2 5 7 3 3 6 Combat Bots Only 10 | . 5 4 . . 6 5 . 3 2 3 . 3 5 10 . 8 . 2 4 7 3 3 4 Max Kills in Single Turn 5 | . 1 1 . . 3 3 . 1 1 2 1 3 2 5 . 1 . 1 3 2 1 1 1 Gunslinging . | . . . . . . . . . . . . . . . . . . . . . . . . Exploded 5 | . . . . . 3 3 . . . 1 . 3 2 5 . . . . 2 2 . . . Melee 1 | . . 1 . . . . . . . . . . . . . . . 1 . . 1 1 1 Uniques/NPCs Destroyed . | . . . . . . . . . . . . . . . . . . . . . . . . Combat | -11 -10 -10 -10 -9 -8 -8 -8 -8 -8 -8 -7 -7 -6 -6 -6 -6 -5 -5 -5 -5 -4 -4 -4 -------- Run | Jun Mat Min Exi Min Mat Gar Mat Gar Mat Gar Fac Gar Fac Gar Fac Gar Fac Gar Fac Gar Fac Gar Fac Damage Taken 21490 | . 424 847 . 46 835 515 . 786 473 172 . 1136 738 1288 63 1643 . 1933 801 2451 2886 2053 2400 Core 2500 | . 86 131 . . 99 88 . 73 69 30 . 130 60 114 . 108 . 124 71 159 435 311 412 Absorbed by Shields 2373 | . . . . . 119 4 . . 16 12 . . 236 152 . . . 73 541 686 381 153 . Reduced by Siege Mode 355 | . . . . . . . . . . . . . . 59 . 26 . 5 34 231 . . . Redirected to Shielding 112 | . . . . . . . . . . . . . . . . . . 14 6 92 . . . Regen/Repaired (Parts) 891 | . . . . . 169 . . . 118 . . . . . 532 . . . . . 72 . . Core Remaining (%) 59 | 100 . . . 13 . . . . . 34 . 81 . . . 66 . . . 64 . . . Volleys Fired 1043 | . 42 65 . 4 85 72 . 77 28 25 . 143 30 55 4 58 3 67 28 82 33 90 52 Largest 2 | . 2 2 . 2 2 2 . 2 2 2 . 2 2 2 2 2 1 2 1 1 1 1 1 Hottest 180 | . 100 100 . 43 160 50 . 160 50 50 . 105 115 115 115 155 90 180 120 120 120 81 105 Shots Fired 1617 | . 84 127 . 8 147 130 . 149 55 45 . 239 53 100 9 95 3 85 28 85 33 91 51 Gun 892 | . 84 127 . 8 40 117 . 139 55 42 . 197 23 44 4 12 . . . . . . . Cannon 604 | . . . . . 99 . . 9 . . . 38 26 45 5 74 3 66 23 74 29 74 39 Launcher 36 | . . . . . 8 13 . 1 . 3 . 4 4 3 . . . . . . . . . Special 85 | . . . . . . . . . . . . . . 8 . 9 . 19 5 11 4 17 12 Kinetic 790 | . . 82 . 8 40 117 . 139 55 42 . 185 23 44 4 12 . . . . 5 24 10 Thermal 515 | . 84 45 . . 99 . . 9 . . . 38 26 45 5 74 3 41 22 1 21 . 2 Explosive 36 | . . . . . 8 13 . 1 . 3 . 4 4 3 . . . . . . . . . Electromagnetic 191 | . . . . . . . . . . . . 12 . . . . . 25 1 73 3 50 27 Robot Hit Streak 41 | . 9 12 . 2 15 25 . 27 39 14 . 19 9 17 6 9 . 41 12 32 4 15 17 Robot Miss Streak 4 | . 4 3 . 3 4 2 . 3 2 2 . 3 2 4 1 4 . 1 2 1 2 3 3 Penetration Max . | . . . . . . . . . . . . . . . . . . . . . . . . Secondary Targets 10 | . 2 2 . . . . . 3 . . . 3 . . . . . . . . . . . Max Gunslinging Chain 1 | . 1 1 . . . . . 1 . . . 1 . . . . . . . . . . . Capacitor 55 | . . . . . . . . . . . . . . . . . . . . . . 44 11 Shots Hit Robots 1138 | . 50 94 . 3 81 86 . 110 48 30 1 154 39 62 3 47 . 80 20 65 33 90 42 Core Hits 523 | . 20 33 . 3 56 61 . 42 18 19 . 80 25 41 . 18 . 21 9 20 12 31 14 Critical Kills 8 | . . 1 . . . . . . . 1 . 2 1 . . 2 . 1 . . . . . Critical Parts Destroyed 9 | . . . . . . 1 . 2 1 . . 1 . . . . . 4 . . . . . Critical Strikes 33 | . 4 3 . . . 1 . 2 1 1 . 3 1 . . 2 . 6 . 1 . 7 1 Burn 6 | . 4 2 . . . . . . . . . . . . . . . . . . . . . Meltdown 3 | . . . . . . . . . . . . . 1 . . 1 . 1 . . . . . Destroy 8 | . . 1 . . . 1 . 1 . 1 . 3 . . . 1 . . . . . . . Blast 6 | . . . . . . . . . . . . . . . . . . . . . . 5 1 Corrupt 3 | . . . . . . . . . . . . . . . . . . 1 . 1 . 1 . Smash 6 | . . . . . . . . 1 1 . . . . . . . . 4 . . . . . Impale 1 | . . . . . . . . . . . . . . . . . . . . . . 1 . Melee Attacks 174 | . . 17 . . 5 8 . 13 13 9 3 19 8 1 . . . 18 . 8 16 35 1 Impact 111 | . . . . . . 8 . 13 13 9 3 19 8 1 . . . 18 . 8 11 . . Slashing 22 | . . 17 . . 5 . . . . . . . . . . . . . . . . . . Piercing 41 | . . . . . . . . . . . . . . . . . . . . . 5 35 1 Sneak Attacks 28 | . . 2 . . . . . . 2 . 1 . . . . . . 9 . . . 14 . Combat Hostiles 16 | . . . . . . . . . . . . . . . . . . 2 . . . 14 . Follow-up Attacks . | . . . . . . . . . . . . . . . . . . . . . . . . Damage Inflicted 32349 | . 631 1210 . 47 2674 2507 . 1660 949 862 126 3743 1569 2025 121 1256 . 2717 1062 2075 1331 4166 1618 Guns 8946 | . 631 947 . 47 431 933 . 1413 753 523 . 2223 325 509 52 159 . . . . . . . Cannons 14113 | . . . . . 1376 . . 154 . . . 629 683 834 69 1097 . 1615 811 1845 813 2569 1618 Explosions 5337 | . . . . . 867 1418 . . . 339 . 775 511 682 . . . 159 251 230 . 105 . Melee 3933 | . . 263 . . . 156 . 91 196 . 126 116 50 . . . . 943 . . 500 1492 . Ramming 20 | . . . . . . . . 2 . . . . . . . . . . . . 18 . . Kinetic 9945 | . . 531 . 47 431 933 . 1413 753 523 . 2006 325 509 52 159 . . . . 79 1435 749 Thermal 8932 | . 631 416 . . 1376 . . 154 . . . 732 683 834 69 1097 . 1140 774 230 645 105 46 Explosive 4740 | . . . . . 867 1418 . . . 339 . 672 511 682 . . . . 251 . . . . Electromagnetic 4779 | . . . . . . . . . . . . 217 . . . . . 634 37 1845 89 1134 823 Impact 2073 | . . . . . . 156 . 91 196 . 126 116 50 . . . . 943 . . 395 . . Slashing 263 | . . 263 . . . . . . . . . . . . . . . . . . . . . Piercing 1597 | . . . . . . . . . . . . . . . . . . . . . 105 1492 . Highest Corruption 35 | . 1 1 1 1 . . . 18 18 18 . 28 3 3 3 8 . 33 34 35 2 20 23 Average Corruption 10 | . 1 1 1 1 . . . 5 18 18 . 6 2 3 3 5 . 4 33 34 1 9 20 Corruption Purged . | . . . . . . . . . . . . . . . . . . . . . . . . Corruption Blocked . | . . . . . . . . . . . . . . . . . . . . . . . . Effects 540 | . 7 12 7 1 . . . 31 44 56 . 49 6 15 12 28 . 37 26 115 8 38 48 Message Errors 121 | . 3 2 . . . . . 10 11 7 . 10 2 1 . 6 . 11 4 24 4 14 12 Matter Fused 136 | . 2 2 2 1 . . . 7 14 13 . 14 . 2 3 6 . 9 7 31 . 9 14 Heat Flow Errors 68 | . . 3 2 . . . . 2 6 11 . 6 . 2 2 4 . 7 4 15 . 1 3 Energy Discharges 59 | . 1 2 1 . . . . 1 5 4 . 7 2 3 3 1 . 3 3 10 1 8 4 Parts Rejected 1 | . . . . . . . . 1 . . . . . . . . . . . . . . . Parts Fused 7 | . . . 1 . . . . . . . . . . . 1 . . 1 1 1 . 1 1 Data Loss (minor) 66 | . . . . . . . . 7 2 15 . 4 1 4 1 7 . 1 3 13 2 1 5 Data Loss (major) 23 | . . 2 . . . . . . 2 3 . 1 . . . 3 . 1 2 4 1 3 1 Misfires 26 | . . . . . . . . 1 1 1 . 2 1 2 2 1 . 3 1 8 . 1 2 Alerts 14 | . 1 1 1 . . . . 1 1 1 . 2 . 1 . . . 1 . 3 . . 1 Misdirections 3 | . . . . . . . . . . . . . . . . . . . . 1 . . 2 Weapon Failures 16 | . . . . . . . . 1 2 1 . 3 . . . . . . 1 5 . . 3 Overload Shots . | . . . . . . . . . . . . . . . . . . . . . . . . Overflow Damage 1473 | . . 16 . . 64 26 . 91 84 56 86 134 39 24 . 12 . 343 59 46 109 192 92 Projectiles 347 | . . . . . 10 . . . . . . . 6 8 . 12 . 10 49 46 85 65 56 Explosions 268 | . . . . . 54 23 . . . 56 . 68 5 16 . . . . 10 . . . 36 Melee 858 | . . 16 . . . 3 . 91 84 . 86 66 28 . . . . 333 . . 24 127 . Knockbacks 9 | . . . . . . . . . . . . . . . . . . 1 . . 1 6 1 Impact 1 | . . . . . . . . . . . . . . . . . . 1 . . . . . Kinetic 8 | . . . . . . . . . . . . . . . . . . . . . 1 6 1 Secondary . | . . . . . . . . . . . . . . . . . . . . . . . . Self-Inflicted Damage 452 | . . . . . . 72 . . . 7 . 34 . 62 . . . 49 . . . 47 181 Shots 12 | . . . . . . 3 . . . 1 . 1 . 3 . . . 1 . . . 1 2 Rammed 2 | . . . . . . . . 1 . . . . . . . . . . . . 1 . . Targets Rammed 2 | . . . . . . . . 1 . . . . . . . . . . . . 1 . . Kicked . | . . . . . . . . . . . . . . . . . . . . . . . . Crushed . | . . . . . . . . . . . . . . . . . . . . . . . . Highest Temperature 402 | . 213 199 179 . 198 104 . 224 190 223 . 198 198 334 237 402 64 349 325 317 219 196 245 Average Temperature 69 | . 55 62 86 . 72 17 . 52 51 71 . 50 76 88 86 98 30 90 103 78 65 79 67 Received Heat Transfer 5023 | . 135 429 . 9 406 132 . 207 147 61 . 225 150 222 12 192 . 212 216 1000 872 183 213 Effects 6 | . . . . . . . . . . . . . . . . 3 . 2 1 . . . . Shutdowns 4 | . . . . . . . . . . . . . . . . 2 . 1 1 . . . . Energy Bleed 1 | . . . . . . . . . . . . . . . . . . 1 . . . . . Short Circuit 1 | . . . . . . . . . . . . . . . . 1 . . . . . . . Siege Activations 10 | . . . . . . . . . . . . . . 2 . 2 . 2 1 3 . . . Total Turns 213 | . . . . . . . . . . . . . . 39 . 27 . 18 30 99 . . . Longest Duration 45 | . . . . . . . . . . . . . . 21 . 17 . 13 30 45 . . . Robots Corrupted 22 | . . . . . . . . . . . . 1 . . . . . 3 . 9 . 4 5 Combat Hostiles 19 | . . . . . . . . . . . . . . . . . . 1 . 9 . 4 5 Parts Fried 42 | . . . . . . . . . 3 . 1 6 . . . . . 10 . 9 . 10 3 Impact Corruptions 18 | . . . . . . 1 . 1 2 . 2 2 1 . . . . 8 . . 1 . . Robots Melted 4 | . . . . . . . . . . . . 1 1 . . 1 . 1 . . . . . Combat Hostiles 3 | . . . . . . . . . . . . . 1 . . 1 . 1 . . . . . Parts Melted 30 | . 6 . . . 5 . . 1 . . . 2 3 . . 7 . 3 1 1 . 1 . Heat Transferred 14054 | . 2183 1184 . . 2700 . . 300 . . . 1400 740 977 74 1555 . 1494 592 200 518 100 37 Parts Sabotaged 2 | . . . . . . . . . . . . . . . . . . . . . . . 2 Parts Stolen . | . . . . . . . . . . . . . . . . . . . . . . . . Parts Stripped . | . . . . . . . . . . . . . . . . . . . . . . . . Power Chain Reactions 5 | . . . . . . . . . . . . 1 . . . . . 1 . 2 . 1 . Missiles Intercepted . | . . . . . . . . . . . . . . . . . . . . . . . . Alert | -11 -10 -10 -10 -9 -8 -8 -8 -8 -8 -8 -7 -7 -6 -6 -6 -6 -5 -5 -5 -5 -4 -4 -4 ------- Run | Jun Mat Min Exi Min Mat Gar Mat Gar Mat Gar Fac Gar Fac Gar Fac Gar Fac Gar Fac Gar Fac Gar Fac Peak Influence 1351 | . 163 102 . . 558 1351 658 1072 522 611 325 978 629 1119 594 709 398 862 501 1267 681 1054 787 Initial 665 | . . 57 . . . 216 658 334 522 200 320 95 494 440 587 389 371 278 452 343 665 382 553 Average 524 | . 74 45 . . 300 708 544 777 386 426 296 592 516 837 563 526 374 496 476 829 582 751 614 Maximum Alert Level 4 | . . . . . 2 4 2 3 2 2 1 3 2 4 2 3 1 3 2 4 2 3 3 Low Security (%) 14 | 100 100 100 . 100 20 . . . . . 12 9 . . . . . . . . . . . Level 1 17 | . . . . . 51 18 . 3 57 39 87 12 . . 2 16 100 26 . 6 . 5 . Level 2 43 | . . . . . 28 34 100 35 42 60 . 40 99 27 97 76 . 61 99 23 100 26 77 Level 3 22 | . . . . . . 37 . 61 . . . 36 . 65 . 6 . 11 . 50 . 67 22 Level 4 2 | . . . . . . 9 . . . . . . . 7 . . . . . 19 . . . Level 5 . | . . . . . . . . . . . . . . . . . . . . . . . . High Security . | . . . . . . . . . . . . . . . . . . . . . . . . Max Security . | . . . . . . . . . . . . . . . . . . . . . . . . Squads Dispatched 24 | . 1 . . . 2 . . . 1 . . . 3 . 2 . 1 . 3 . 5 . 6 Investigation 2 | . . . . . . . . . . . . . . . 1 . 1 . . . . . . Extermination 4 | . . . . . . . . . . . . . . . . . . . 1 . 2 . 1 Reinforcement 12 | . 1 . . . 2 . . . 1 . . . 1 . . . . . 1 . 2 . 4 Assault 6 | . . . . . . . . . . . . . 2 . 1 . . . 1 . 1 . 1 Garrison . | . . . . . . . . . . . . . . . . . . . . . . . . Intercept . | . . . . . . . . . . . . . . . . . . . . . . . . Searches Triggered . | . . . . . . . . . . . . . . . . . . . . . . . . Construction Impeded 1 | . . . . . . . . . . . . . 1 . . . . . . . . . . Haulers Reinforced 1 | . . . . . . . . . . . . . . . . . . . . . . . 1 Active Scanning Responses . | . . . . . . . . . . . . . . . . . . . . . . . . Cargo Convoy Interrupts . | . . . . . . . . . . . . . . . . . . . . . . . . Alert ID Control Effect 3 | . . . . . . . . . . . . . . . . . . . . . 1 1 1 Stealth | -11 -10 -10 -10 -9 -8 -8 -8 -8 -8 -8 -7 -7 -6 -6 -6 -6 -5 -5 -5 -5 -4 -4 -4 --------- Run | Jun Mat Min Exi Min Mat Gar Mat Gar Mat Gar Fac Gar Fac Gar Fac Gar Fac Gar Fac Gar Fac Gar Fac Distress Signals 5 | . . 1 . . 2 . . . 1 . . . 1 . . . . . . . . . . Communications Jammed 47 | . . . . . . . . . 8 . . . . . 1 . . . 28 . 2 . 8 Distress Signals 47 | . . . . . . . . . 8 . . . . . 1 . . . 28 . 2 . 8 Times Spotted 409 | . 20 13 . 1 37 29 1 24 13 12 1 31 13 31 9 23 . 23 13 39 26 26 24 Peak Tracking Total 11 | . 4 2 . 2 6 9 1 5 2 2 1 3 5 6 4 9 . 6 7 11 5 4 8 Tactical Retreats 21 | . . . . . 1 1 . 1 . . . 3 . 2 . . . 6 . 1 4 1 1 Traps | -11 -10 -10 -10 -9 -8 -8 -8 -8 -8 -8 -7 -7 -6 -6 -6 -6 -5 -5 -5 -5 -4 -4 -4 ------- Run | Jun Mat Min Exi Min Mat Gar Mat Gar Mat Gar Fac Gar Fac Gar Fac Gar Fac Gar Fac Gar Fac Gar Fac Traps Triggered 61 | . 1 . . . . 6 . 7 . 4 . 6 2 . . 3 . 7 . 8 . 16 1 Indirectly . | . . . . . . . . . . . . . . . . . . . . . . . . Trap Hack Attempts . | . . . . . . . . . . . . . . . . . . . . . . . . Triggered . | . . . . . . . . . . . . . . . . . . . . . . . . Disarmed 1 | . . . . . 1 . . . . . . . . . . . . . . . . . . Reprogrammed . | . . . . . . . . . . . . . . . . . . . . . . . . Reused . | . . . . . . . . . . . . . . . . . . . . . . . . Traps Reconfigurated 4 | . . . . . . . . . . . . . . . . 4 . . . . . . . Traps Extracted . | . . . . . . . . . . . . . . . . . . . . . . . . Installed . | . . . . . . . . . . . . . . . . . . . . . . . . Triggered . | . . . . . . . . . . . . . . . . . . . . . . . . Machines | -11 -10 -10 -10 -9 -8 -8 -8 -8 -8 -8 -7 -7 -6 -6 -6 -6 -5 -5 -5 -5 -4 -4 -4 ---------- Run | Jun Mat Min Exi Min Mat Gar Mat Gar Mat Gar Fac Gar Fac Gar Fac Gar Fac Gar Fac Gar Fac Gar Fac Machines Disabled 53 | . . . . . 7 . . 5 1 2 . 2 1 3 . 5 . 2 4 5 2 8 6 Max in Single Turn 5 | . . . . . 2 . . 2 1 1 . 1 1 1 . 1 . 1 4 1 1 1 5 Garrison Access 1 | . . . . . . . . . . . . . 1 . . . . . . . . . . Garrison Relay 18 | . . . . . . . . 3 . 1 . 2 . 1 . 1 . 1 . 4 . 5 . Machines Repaired . | . . . . . . . . . . . . . . . . . . . . . . . . Machines Sabotaged . | . . . . . . . . . . . . . . . . . . . . . . . . Overloaded Fab Kills . | . . . . . . . . . . . . . . . . . . . . . . . . Hacking | -11 -10 -10 -10 -9 -8 -8 -8 -8 -8 -8 -7 -7 -6 -6 -6 -6 -5 -5 -5 -5 -4 -4 -4 --------- Run | Jun Mat Min Exi Min Mat Gar Mat Gar Mat Gar Fac Gar Fac Gar Fac Gar Fac Gar Fac Gar Fac Gar Fac Machines Accessed 70 | . 7 . 2 . 8 3 2 3 8 1 4 1 4 3 4 2 2 2 4 2 6 1 1 Terminals 45 | . 6 . . . 6 3 1 3 5 1 . 1 3 3 . 2 . 2 1 2 4 1 1 Fabricators 5 | . . . . . . . . . . . 2 . . . 1 . . . 2 . . . . Repair Stations 5 | . . . . . 1 . . . 2 . . . . . 1 . . . . . 1 . . Recycling Units 4 | . 1 . . . . . . . . . 1 . . . 1 . 1 . . . . . . Scanalyzers . | . . . . . . . . . . . . . . . . . . . . . . . . Garrison Access 9 | . . . . . 1 . 1 . 1 . 1 . 1 . 1 . 1 . 1 . 1 . . Total Hacks 141 | . 15 . 2 . 19 4 5 8 21 1 8 1 6 4 13 3 5 2 7 4 10 2 1 Successful 73 | . 9 . 2 . 11 2 3 1 11 . 4 1 4 3 7 2 3 2 4 . 3 1 . Failed 67 | . 5 . . . 8 2 2 7 10 1 4 . 2 1 6 1 2 . 3 4 7 1 1 Catastrophic 20 | . . . . . 1 1 . . 3 1 1 . 2 1 3 . . . . 2 4 . 1 Database Lockouts 1 | . 1 . . . . . . . . . . . . . . . . . . . . . . Manual 23 | . 3 . 1 . 4 . 3 . 2 . . . 1 . 3 . 1 . 3 . 2 . . Terminals 83 | . 12 . . . 16 4 3 8 10 1 . 1 4 4 . 3 . 2 1 4 7 2 1 Fabricators 12 | . . . . . . . . . . . 3 . . . 4 . . . 5 . . . . Repair Stations 16 | . . . . . 2 . . . 9 . . . . . 3 . . . . . 2 . . Recycling Units 12 | . 3 . . . . . . . . . 3 . . . 4 . 2 . . . . . . Scanalyzers . | . . . . . . . . . . . . . . . . . . . . . . . . Garrison Access 16 | . . . . . 1 . 2 . 2 . 2 . 2 . 2 . 3 . 1 . 1 . . Terminal Hacks 38 | . 8 . 2 . 8 2 1 1 4 . . 1 2 3 . 2 . 2 1 . . 1 . Record 1 | . . . 1 . . . . . . . . . . . . . . . . . . . . Part Schematic 1 | . 1 . . . . . . . . . . . . . . . . . . . . . . Prototype ID Bank 3 | . 2 . . . . . . . 1 . . . . . . . . . . . . . . Emergency Access Points 7 | . . . . . . 1 . 1 . . . 1 . 1 . 1 . 1 . . . 1 . Terminal Index 1 | . 1 . . . . . . . . . . . . . . . . . . . . . . Garrison Index 1 | . . . . . . . . . . . . . 1 . . . . . . . . . . Unreport Threat 3 | . . . . . 1 . 1 . 1 . . . . . . . . . . . . . . Locate Traps 5 | . 1 . . . 3 . . . 1 . . . . . . . . . . . . . . Disarm Traps 1 | . . . . . 1 . . . . . . . . . . . . . . . . . . Hauler Manifests 5 | . 1 . . . 1 . . . 1 . . . 1 . . . . . 1 . . . . Zone Layout 4 | . 2 . . . 2 . . . . . . . . . . . . . . . . . . Garrison Registry 3 | . . . . . . . . . . . . . . 1 . 1 . 1 . . . . . Patrol Navigation 1 | . . . . . . 1 . . . . . . . . . . . . . . . . . Security Stations 1 | . . . . . . . . . . . . . . 1 . . . . . . . . . Derelict Proto ID Bank 1 | . . . 1 . . . . . . . . . . . . . . . . . . . . Fabricator Hacks 4 | . . . . . . . . . . . 1 . . . 1 . . . 2 . . . . Network Status 2 | . . . . . . . . . . . 1 . . . . . . . 1 . . . . Build 2 | . . . . . . . . . . . . . . . 1 . . . 1 . . . . Repair Station Hacks 11 | . . . . . 2 . . . 5 . . . . . 2 . . . . . 2 . . Scan Component 6 | . . . . . 1 . . . 3 . . . . . 1 . . . . . 1 . . Repair 5 | . . . . . 1 . . . 2 . . . . . 1 . . . . . 1 . . Recycling Unit Hacks 3 | . 1 . . . . . . . . . 1 . . . 1 . . . . . . . . Retrieve Components 3 | . 1 . . . . . . . . . 1 . . . 1 . . . . . . . . Scanalyzer . | . . . . . . . . . . . . . . . . . . . . . . . . Garrison Access Hacks 15 | . . . . . 1 . 2 . 2 . 2 . 2 . 2 . 2 . 1 . 1 . . Unlock Access 9 | . . . . . 1 . 1 . 1 . 1 . 1 . 1 . 1 . 1 . 1 . . Coupler Status 6 | . . . . . . . 1 . 1 . 1 . 1 . 1 . 1 . . . . . . Unauthorized Hacks 2 | . . . . . . . . . . . . . . . 1 . 1 . . . . . . Terminals . | . . . . . . . . . . . . . . . . . . . . . . . . Fabricators . | . . . . . . . . . . . . . . . . . . . . . . . . Repair Stations . | . . . . . . . . . . . . . . . . . . . . . . . . Recycling Units 1 | . . . . . . . . . . . . . . . 1 . . . . . . . . Recyclers 1 | . . . . . . . . . . . . . . . 1 . . . . . . . . Scanalyzers . | . . . . . . . . . . . . . . . . . . . . . . . . Garrison Access 1 | . . . . . . . . . . . . . . . . . 1 . . . . . . Eject 1 | . . . . . . . . . . . . . . . . . 1 . . . . . . Data Cores Recovered . | . . . . . . . . . . . . . . . . . . . . . . . . Used . | . . . . . . . . . . . . . . . . . . . . . . . . Hacking Detections 50 | . 5 . . . 6 1 1 3 7 1 3 . 4 2 4 2 2 1 1 2 4 . 1 Full Trace Events 4 | . . . . . . . . 1 . . . . . 1 1 . . . . 1 . . . Feedback Events 1 | . . . . . . . . 1 . . . . . . . . . . . . . . . Corruption 1 | . . . . . . . . 1 . . . . . . . . . . . . . . . Feedback Blocked . | . . . . . . . . . . . . . . . . . . . . . . . . Robot Schematics Acquired . | . . . . . . . . . . . . . . . . . . . . . . . . Robots Built 2 | . . . . . . . . . . . . . . . 2 . . . . . . . . Authchips . | . . . . . . . . . . . . . . . . . . . . . . . . Time 152 | . . . . . . . . . . . . . . . 152 . . . . . . . . Total Robot Build Rating 10 | . . . . . . . . . . . . . . . 10 . . . . . . . . Part Schematics Acquired 1 | . 1 . . . . . . . . . . . . . . . . . . . . . . Parts Built 1 | . . . . . . . . . . . . . . . . . . . 1 . . . . Authchips . | . . . . . . . . . . . . . . . . . . . . . . . . Time 69 | . . . . . . . . . . . . . . . . . . . 69 . . . . Total Part Build Rating 9 | . . . . . . . . . . . . . . . . . . . 9 . . . . Parts Repaired 5 | . . . . . 1 . . . 2 . . . . . 1 . . . . . 1 . . Time 264 | . . . . . 26 . . . 120 . . . . . 62 . . . . . 56 . . Parts Recycled . | . . . . . . . . . . . . . . . . . . . . . . . . Recycled Matter . | . . . . . . . . . . . . . . . . . . . . . . . . Retrieved Matter . | . . . . . . . . . . . . . . . . . . . . . . . . Retrieved Components 4 | . . . . . . . . . . . 1 . . . 3 . . . . . . . . Parts Scanalyzed . | . . . . . . . . . . . . . . . . . . . . . . . . Part Schematics Acquired . | . . . . . . . . . . . . . . . . . . . . . . . . Parts Damaged . | . . . . . . . . . . . . . . . . . . . . . . . . Bothacking | -11 -10 -10 -10 -9 -8 -8 -8 -8 -8 -8 -7 -7 -6 -6 -6 -6 -5 -5 -5 -5 -4 -4 -4 ------------ Run | Jun Mat Min Exi Min Mat Gar Mat Gar Mat Gar Fac Gar Fac Gar Fac Gar Fac Gar Fac Gar Fac Gar Fac Used RIF Installer 9 | . . . . . . 1 . 1 . 1 . 1 . 1 . 1 . 1 . 1 . 1 . Threat Obfuscator 2 | . . . . . . . . 1 . . . . . . . . . . . . . 1 . Signal Jammer 1 | . . . . . . . . . . . . . . . . 1 . . . . . . . Zone Cloak 2 | . . . . . . . . . . 1 . . . . . . . . . 1 . . . Watcher Feeds 1 | . . . . . . . . . . . . . . 1 . . . . . . . . . Patrol Navigation 1 | . . . . . . . . . . . . 1 . . . . . . . . . . . Alert ID Control 1 | . . . . . . . . . . . . . . . . . . 1 . . . . . Robots Hacked 42 | . . . . . . . . . . . . . . . . 6 . 12 1 6 1 10 6 Non-combat 1 | . . . . . . . . . . . . . . . . . . . . . . . 1 Combat 41 | . . . . . . . . . . . . . . . . 6 . 12 1 6 1 10 5 Robot Hacks Applied 46 | . . . . . . . . . . . . . . . . 6 . 14 1 6 1 10 8 drop_inventory 1 | . . . . . . . . . . . . . . . . . . . . . . . 1 amplify_resonance 19 | . . . . . . . . . . . . . . . . 4 . 5 . 5 . 3 2 disable_weapons 1 | . . . . . . . . . . . . . . . . . . . . . . 1 . reboot_system 11 | . . . . . . . . . . . . . . . . 1 . 5 . . . 3 2 overwrite_iff 10 | . . . . . . . . . . . . . . . . 1 . 2 . 1 . 3 3 formatsys_high 4 | . . . . . . . . . . . . . . . . . . 2 1 . 1 . . Relay Couplers Released 91 | . . . . . . 3 . 12 . 5 . 10 2 3 . 4 4 8 . 15 . 25 . Ejected 4 | . . . . . . . . . . . . . . . . . 4 . . . . . . Machine Destruction 76 | . . . . . . . . 12 . 5 . 10 2 3 . 4 . 4 . 15 . 21 . Programmers 11 | . . . . . . 3 . . . . . . . . . . . 4 . . . 4 . Attached 28 | . . . . . . . . . . . . . . . 2 4 1 4 2 2 3 8 2 Fabnet Peak Effective % . | . . . . . . . . . . . . . . . . . . . . . . . . Robots Rewired 13 | . . . . . . 3 . . . . . 3 . 5 . . . . . 1 . 1 . Allies Hacked . | . . . . . . . . . . . . . . . . . . . . . . . . Hacks Repelled . | . . . . . . . . . . . . . . . . . . . . . . . . Allies | -11 -10 -10 -10 -9 -8 -8 -8 -8 -8 -8 -7 -7 -6 -6 -6 -6 -5 -5 -5 -5 -4 -4 -4 -------- Run | Jun Mat Min Exi Min Mat Gar Mat Gar Mat Gar Fac Gar Fac Gar Fac Gar Fac Gar Fac Gar Fac Gar Fac Total Allies 39 | . . . . . . 5 . 2 . 2 . 3 . 5 2 1 . 5 1 4 2 5 2 Largest Group 6 | . . . . . . 4 4 4 . 2 . 3 . 4 6 3 . 2 1 2 1 3 1 Highest-Rated Group 255 | . . . . . . 93 93 93 . 59 . 60 . 226 255 197 . 111 49 98 137 223 58 Highest-Rated Ally 137 | . . . . . . 25 25 39 . 39 . 20 . 99 84 84 . 85 49 85 137 116 58 Total Orders 8 | . . . . . . 2 . . . . . . . . . . . 1 . 5 . . . STAY 1 | . . . . . . 1 . . . . . . . . . . . . . . . . . ROAM 4 | . . . . . . . . . . . . . . . . . . 1 . 3 . . . FOLLOW 3 | . . . . . . 1 . . . . . . . . . . . . . 2 . . . Ally Attacks 257 | . . . . . . 23 2 23 . 24 . 14 . 32 35 6 . 18 2 28 18 24 8 Total Damage 7830 | . . . . . . 476 63 504 . 280 . 184 . 1043 1015 164 . 624 89 1211 702 1279 196 Kills 49 | . . . . . . 5 1 9 . 4 . 1 . 4 8 . . 4 . 5 3 4 1 Allies Corrupted 1 | . . . . . . . . . . . . . . . 1 . . . . . . . . Allies Melted 2 | . . . . . . . . . . 1 . . . . . . . 1 . . . . . Field Lobotomies 5 | . . . . . . . . . . . . . . . . . . 1 . 2 1 1 . Intel | -11 -10 -10 -10 -9 -8 -8 -8 -8 -8 -8 -7 -7 -6 -6 -6 -6 -5 -5 -5 -5 -4 -4 -4 ------- Run | Jun Mat Min Exi Min Mat Gar Mat Gar Mat Gar Fac Gar Fac Gar Fac Gar Fac Gar Fac Gar Fac Gar Fac Robot Analysis Total . | . . . . . . . . . . . . . . . . . . . . . . . . Derelict Logs Recovered 2 | . . 2 . . . . . . . . . . . . . . . . . . . . . Drone Launches . | . . . . . . . . . . . . . . . . . . . . . . . . Drone Recoveries . | . . . . . . . . . . . . . . . . . . . . . . . . Exploration | -11 -10 -10 -10 -9 -8 -8 -8 -8 -8 -8 -7 -7 -6 -6 -6 -6 -5 -5 -5 -5 -4 -4 -4 ------------- Run | Jun Mat Min Exi Min Mat Gar Mat Gar Mat Gar Fac Gar Fac Gar Fac Gar Fac Gar Fac Gar Fac Gar Fac Turns Passed 26164 | 5 1125 1460 579 320 2266 1866 115 1723 946 1203 459 2094 780 797 589 1283 196 2174 500 2245 1035 1502 902 Spaces Moved 10710 | 2 606 594 286 144 808 676 50 607 317 506 207 703 410 360 289 566 115 845 201 841 376 819 382 Core 4 | . . . . . . . . . . . . . . . . . . . . . 4 . . Treads 4524 | 2 606 8 . . . 8 . . . . . . 410 360 289 566 115 845 201 841 252 . 21 Legs . | . . . . . . . . . . . . . . . . . . . . . . . . Wheels 6178 | . . 586 286 144 808 668 50 607 317 506 207 703 . . . . . . . . 116 819 361 Hover . | . . . . . . . . . . . . . . . . . . . . . . . . Flight 4 | . . . . . . . . . . . . . . . . . . . . . 4 . . Fastest Speed 110 | 160 160 160 200 200 110 230 230 210 210 210 210 210 160 160 160 160 160 160 160 160 110 110 130 Average Speed 198 | 160 160 202 200 204 228 231 230 229 211 211 210 222 160 160 160 182 160 211 172 222 219 128 190 Slowest Speed 1550 | 160 160 215 200 215 245 320 230 230 225 225 225 225 160 160 160 240 160 240 240 240 1550 130 230 Overloaded Moves 4 | . . . . . . . . . . . . . . . . . . . . . 4 . . Propulsion Burnouts . | . . . . . . . . . . . . . . . . . . . . . . . . Robots Hopped . | . . . . . . . . . . . . . . . . . . . . . . . . Cave-ins Triggered . | . . . . . . . . . . . . . . . . . . . . . . . . Exploration Rate (%) 47 | 2 93 98 61 50 78 78 5 79 42 63 8 69 15 57 13 64 4 73 8 73 12 76 15 Regions Visited 23 Branch Regions 3 Pre-discovered Areas 4 | . . 3 1 . . . . . . . . . . . . . . . . . . . . Known Exits Taken 9 | . . . . . 1 . 1 . 1 . 1 . 1 . 1 . 1 . 1 . 1 . . Unknown Exits Taken 5 | 1 1 1 1 1 . . . . . . . . . . . . . . . . . . . Scrap Searched 3 | . . 1 . 2 . . . . . . . . . . . . . . . . . . . Spaces Dug 104 | . . . . . 19 20 . 1 9 4 1 26 6 1 2 1 2 3 . 5 4 . . Terrain Destroyed 408 | . . . . . 78 79 . 3 9 26 1 32 35 34 3 2 2 13 27 8 7 11 38 Melee 43 | . . . . . 3 1 . 1 9 4 1 10 6 1 . . . 2 . 5 . . . Projectile 64 | . . . . . 35 . . . . . . . 3 3 3 2 2 2 3 . 7 4 . AOE 301 | . . . . . 40 78 . 2 . 22 . 22 26 30 . . . 9 24 3 . 7 38 Terrain Rammed . | . . . . . . . . . . . . . . . . . . . . . . . . Walls Destroyed . | . . . . . . . . . . . . . . . . . . . . . . . . Machines Disabled . | . . . . . . . . . . . . . . . . . . . . . . . . Actions | -11 -10 -10 -10 -9 -8 -8 -8 -8 -8 -8 -7 -7 -6 -6 -6 -6 -5 -5 -5 -5 -4 -4 -4 --------- Run | Jun Mat Min Exi Min Mat Gar Mat Gar Mat Gar Fac Gar Fac Gar Fac Gar Fac Gar Fac Gar Fac Gar Fac Total 14060 | 5 677 705 295 164 1086 874 50 816 539 595 225 1028 476 498 408 728 123 1118 333 1129 517 1154 517 Wait 998 | . 14 8 . . 79 42 . 25 142 25 . 46 4 31 110 43 . 99 82 146 27 47 28 Move 10694 | 1 605 593 285 143 808 675 50 606 317 505 206 702 410 359 289 565 114 844 201 840 376 818 382 Hop . | . . . . . . . . . . . . . . . . . . . . . . . . Pick Up 224 | . 11 4 8 9 49 4 . 6 9 4 2 11 8 3 3 11 2 17 5 15 13 22 8 Fast Attach 93 | . 2 . . . 4 1 . 3 1 4 6 3 1 6 . 4 . 11 . 2 17 14 14 Attach 92 | 2 . 10 . 2 6 1 . 2 . . 1 6 4 4 . 7 2 7 2 7 10 10 9 Detach 8 | . . . . . . . . . . . . . . . . . . . 2 1 3 . 2 Swap 220 | . 1 6 . 3 21 22 . 17 16 14 1 16 5 7 2 21 2 26 7 9 6 11 7 Drop 217 | 2 2 2 2 3 29 5 . 10 13 9 6 15 6 6 . 15 . 21 6 9 15 27 14 Fire 1043 | . 42 65 . 4 85 72 . 77 28 25 . 143 30 55 4 58 3 67 28 82 33 90 52 Melee 174 | . . 17 . . 5 8 . 13 13 9 3 19 8 1 . . . 18 . 8 16 35 1 Ram . | . . . . . . . . . . . . . . . . . . . . . . . . Kick . | . . . . . . . . . . . . . . . . . . . . . . . . Crush 2 | . . . . . . . . 1 . . . . . . . . . . . . 1 . . Escape Stasis 216 | . . . . . . 26 . 56 . . . 32 . . . 4 . 8 . 10 . 80 . Rewire 79 | . . . . . . 18 . . . . . 35 . 26 . . . . . . . . . Trap . | . . . . . . . . . . . . . . . . . . . . . . . . Miscellaneous . | . . . . . . . . . . . . . . . . . . . . . . . . Route ------- -11/Junkyard -10/Materials (discovered 4 exits: [*Mat x2] / [*Min x2]) -10/Mines (discovered 4 exits: [*Mat x2] / *Exi / [*Sub]) -10/Exiles -9/Mines -8/Materials -8/Garrison (discovered 3 exits: *Mat x3) -8/Materials -8/Garrison (discovered 3 exits: *Fac x2 / *Mat) -8/Materials (discovered 2 exits: *Fac / Gar) -8/Garrison (discovered 2 exits: *Fac x2) -7/Factory -7/Garrison (discovered 2 exits: *Fac x2) -6/Factory -6/Garrison (discovered 4 exits: *Fac x4) -6/Factory -6/Garrison (discovered 3 exits: *Fac x3) -5/Factory -5/Garrison (discovered 3 exits: *Fac x3) -5/Factory -5/Garrison (discovered 3 exits: *Fac x3) -4/Factory (discovered 3 exits: *Res x2 / Gar) -4/Garrison (discovered 3 exits: *Fac x3) -4/Factory History --------- Turn | Location | Event 5 | -11/Junkyard | Discovered new exit (range 1) 6 | -11/Junkyard | Entered Materials 120 | -10/Materials | Discovered new exit (range 12) 169 | -10/Materials | Discovered new exit (range 4) 310 | -10/Materials | Build established: Mutant 632 | -10/Materials | Discovered new exit (range 4) 693 | -10/Materials | Central database locked down 906 | -10/Materials | Discovered new exit (range 13) 1131 | -10/Materials | Entered Mines 1132 | -10/Mines | Learned location of Storage (-9) 1301 | -10/Mines | Discovered new exit (range 3) 1610 | -10/Mines | Excavation squad dispatched 1610 | -10/Mines | A large section of the Mines collapsed 1683 | -10/Mines | Learned location of Mines (-9) 1753 | -10/Mines | Core integrity fell below 50% 1821 | -10/Mines | Lost 3 parts (1p1n1w) 1824 | -10/Mines | Discovered new exit (range 5) 1977 | -10/Mines | Core integrity fell below 20% 2470 | -10/Mines | Discovered new exit (range 6) 2497 | -10/Mines | Lost 3 parts (1p1n1u) 2581 | -10/Mines | Deemed a non-threat by the Exiles lab entrance 2583 | -10/Mines | Discovered new exit (range 5) 2591 | -10/Mines | Entered Exiles 2637 | -10/Exiles | Met 8R-AWN 2723 | -10/Exiles | Met EX-HEX 2789 | -10/Exiles | Met EX-BIN 2811 | -10/Exiles | Aligned with FarCom system 2813 | -10/Exiles | Given EX-Vault access code 2867 | -10/Exiles | Opened EX-Vault 2883 | -10/Exiles | Found Trap Reconfigurator 2888 | -10/Exiles | Found Field Lobotomy Kit 2895 | -10/Exiles | Found Skeleton Box 2940 | -10/Exiles | Warned to stay clear of 0b10 Research branches 3000 | -10/Exiles | Met EX-DEC 3012 | -10/Exiles | Learned location of Zion (-6) 3148 | -10/Exiles | Discovered new exit (range 12) 3170 | -10/Exiles | Stole three prototypes: Skeleton Box, Trap Reconfigurator, Field Lobotomy Kit 3170 | -10/Exiles | Entered Mines 3354 | -9/Mines | Joined a pair of Derelicts in attacking an 0b10 outpost 3462 | -9/Mines | Discovered new exit (range 15) 3490 | -9/Mines | Entered Materials 3490 | -8/Materials | Evolved 4 slots: Propulsion x1, Utility x3 3653 | -8/Materials | Build established: Scavenger-Mutant 4852 | -8/Materials | Repaired Huge Storage Unit 5756 | -8/Materials | Identified exit to Garrison 5756 | -8/Materials | Entered Garrison 5816 | -8/Garrison | Triggered checkpoint 5922 | -8/Garrison | Triggered checkpoint 6188 | -8/Garrison | Triggered checkpoint 6257 | -8/Garrison | Discovered new exit (range 9) 6280 | -8/Garrison | Triggered checkpoint 6497 | -8/Garrison | Discovered new exit (range 11) 6564 | -8/Garrison | Triggered checkpoint 6877 | -8/Garrison | Triggered checkpoint 7076 | -8/Garrison | Triggered checkpoint 7191 | -8/Garrison | Triggered checkpoint 7226 | -8/Garrison | Triggered checkpoint 7304 | -8/Garrison | Installed Relay Interface Framework 7430 | -8/Garrison | Triggered checkpoint 7447 | -8/Garrison | Rescued a captive Derelict 7447 | -8/Garrison | Rescued a captive Derelict 7509 | -8/Garrison | Discovered new exit (range 14) 7622 | -8/Garrison | Entered Materials 7622 | -8/Materials | Accompanied by 4 allies 7737 | -8/Materials | Identified exit to Garrison 7737 | -8/Materials | Entered Garrison 7737 | -8/Garrison | Accompanied by 4 allies 7786 | -8/Garrison | Triggered checkpoint 7821 | -8/Garrison | Discovered new exit (range 6) 7920 | -8/Garrison | Triggered checkpoint 7928 | -8/Garrison | Triggered checkpoint 8069 | -8/Garrison | Expanded RIF knowledge: Threat Obfuscation 8106 | -8/Garrison | Discovered new exit (range 10) 8186 | -8/Garrison | Triggered checkpoint 8371 | -8/Garrison | Discovered new exit (range 13) 8602 | -8/Garrison | Garrison Relay disabled 8627 | -8/Garrison | Build established: Mutant 8639 | -8/Garrison | Rescued a captive Derelict 8639 | -8/Garrison | Rescued a captive Derelict 8903 | -8/Garrison | Garrison Relay disabled 9168 | -8/Garrison | Triggered checkpoint 9207 | -8/Garrison | Garrison Relay disabled 9432 | -8/Garrison | System corruption reached 10% 9460 | -8/Garrison | Entered Materials 9743 | -8/Materials | Build established: Scavenger-Mutant 9807 | -8/Materials | Repaired Broken Enh. Autogun? 9905 | -8/Materials | Discovered new exit (range 10) 9960 | -8/Materials | Core integrity fell below 50% 10368 | -8/Materials | Repaired Corrupted Arm. Wheel 10406 | -8/Materials | Identified exit to Garrison 10406 | -8/Materials | Entered Garrison 10484 | -8/Garrison | Triggered checkpoint 10649 | -8/Garrison | Garrison Relay disabled 10700 | -8/Garrison | Remotely autohacked Sealed Heavy Doors 10700 | -8/Garrison | Rescued a captive Derelict 10702 | -8/Garrison | Rescued a captive Derelict 10721 | -8/Garrison | Build established: Mutant 10824 | -8/Garrison | Triggered checkpoint 10870 | -8/Garrison | Triggered checkpoint 10920 | -8/Garrison | Triggered checkpoint 10982 | -8/Garrison | Expanded RIF knowledge: Zone Cloak 11025 | -8/Garrison | Discovered new exit (range 8) 11170 | -8/Garrison | Spotted B-75 Beast 11381 | -8/Garrison | Discovered new exit (range 13) 11609 | -8/Garrison | Entered Factory 11609 | -7/Factory | Evolved 2 slots: Utility x2 11611 | -7/Factory | FarCom data flow suspended 12045 | -7/Factory | Identified exit to Garrison 12068 | -7/Factory | Entered Garrison 12080 | -7/Garrison | Triggered checkpoint 12168 | -7/Garrison | Triggered checkpoint 12431 | -7/Garrison | Triggered checkpoint 12498 | -7/Garrison | Triggered checkpoint 12572 | -7/Garrison | Triggered checkpoint 12608 | -7/Garrison | Triggered checkpoint 12681 | -7/Garrison | Expanded RIF knowledge: Patrol Navigation 12697 | -7/Garrison | Garrison Relay disabled 13231 | -7/Garrison | Build established: Scavenger-Mutant 13270 | -7/Garrison | System corruption reached 10% 13346 | -7/Garrison | Triggered checkpoint 13349 | -7/Garrison | Discovered new exit (range 12) 13394 | -7/Garrison | Triggered checkpoint 13527 | -7/Garrison | Garrison Relay disabled 13647 | -7/Garrison | Build established: Mutant 13708 | -7/Garrison | Triggered checkpoint 13912 | -7/Garrison | Triggered checkpoint 14119 | -7/Garrison | Discovered new exit (range 14) 14162 | -7/Garrison | Entered Factory 14162 | -6/Factory | Evolved 2 slots: Power x1, Propulsion x1 14512 | -6/Factory | First assault squad dispatched 14942 | -6/Factory | Identified exit to Garrison 14942 | -6/Factory | Entered Garrison 15004 | -6/Garrison | Build established: Bothacker-Mutant 15056 | -6/Garrison | Destroyed 7 combat bots 15113 | -6/Garrison | Discovered new exit (range 56) 15113 | -6/Garrison | Discovered new exit (range 68) 15113 | -6/Garrison | Discovered new exit (range 32) 15113 | -6/Garrison | Discovered new exit (range 70) 15142 | -6/Garrison | Triggered checkpoint 15188 | -6/Garrison | Triggered checkpoint 15231 | -6/Garrison | Destroyed 10 combat bots 15302 | -6/Garrison | Learned Factory security intel 15306 | -6/Garrison | Triggered checkpoint 15346 | -6/Garrison | Expanded RIF knowledge: Watcher Feeds 15358 | -6/Garrison | Garrison Relay disabled 15504 | -6/Garrison | Triggered checkpoint 15530 | -6/Garrison | Spotted Striker 15530 | -6/Garrison | Spotted Striker 15555 | -6/Garrison | Rewired Striker 15556 | -6/Garrison | Rewired Striker 15569 | -6/Garrison | Allies destroyed Striker 15572 | -6/Garrison | Destroyed Striker 15662 | -6/Garrison | Build established: Botlord-Mutant 15671 | -6/Garrison | Triggered checkpoint 15739 | -6/Garrison | Entered Factory 15739 | -6/Factory | Accompanied by 5 allies 16003 | -6/Factory | Fabricated E-15 Imp (x2) 16089 | -6/Factory | First assault squad dispatched 16139 | -6/Factory | Repaired Imp. Heavy Treads 16328 | -6/Factory | Identified exit to Garrison 16328 | -6/Factory | Entered Garrison 16328 | -6/Garrison | Accompanied by 3 allies 16446 | -6/Garrison | Triggered checkpoint 16449 | -6/Garrison | Spotted B-75 Beast 16556 | -6/Garrison | Triggered checkpoint 16570 | -6/Garrison | Destroyed 8 combat bots 16572 | -6/Garrison | Triggered checkpoint 16576 | -6/Garrison | Lost 3 parts (2u1w) 16647 | -6/Garrison | Triggered checkpoint 16671 | -6/Garrison | Discovered new exit (range 77) 16671 | -6/Garrison | Discovered new exit (range 26) 16671 | -6/Garrison | Discovered new exit (range 56) 16685 | -6/Garrison | Garrison Relay disabled 16829 | -6/Garrison | H-XX Assembler disabled 17345 | -6/Garrison | Found Unknown Hackware 17348 | -6/Garrison | Found Unknown Hackware 17352 | -6/Garrison | Found Unknown Hackware 17355 | -6/Garrison | Found Unknown Hackware 17457 | -6/Garrison | Expanded RIF knowledge: Signal Jamming 17611 | -6/Garrison | Entered Factory 17611 | -5/Factory | Evolved 2 slots: Utility x2 17795 | -5/Factory | Identified exit to Garrison 17807 | -5/Factory | Entered Garrison 18052 | -5/Garrison | Triggered checkpoint 18186 | -5/Garrison | Heavy support dispatched to Factory 18274 | -5/Garrison | Lost 4 parts (2p1n1u) 18407 | -5/Garrison | Discovered new exit (range 9) 18709 | -5/Garrison | Garrison Relay disabled 18717 | -5/Garrison | Heavy support dispatched to Factory 18815 | -5/Garrison | Heavy support dispatched to Factory 18878 | -5/Garrison | Spotted B-75 Beast 18899 | -5/Garrison | Assimilated B-75 Beast with FLK Orb 19135 | -5/Garrison | Triggered checkpoint 19210 | -5/Garrison | Triggered checkpoint 19268 | -5/Garrison | Discovered new exit (range 67) 19268 | -5/Garrison | Discovered new exit (range 69) 19268 | -5/Garrison | Discovered new exit (range 22) 19354 | -5/Garrison | Expanded RIF knowledge: Alert ID Control 19406 | -5/Garrison | Triggered checkpoint 19750 | -5/Garrison | System corruption reached 10% 19908 | -5/Garrison | Found Quantum Capacitor 19928 | -5/Garrison | Spotted Striker 19928 | -5/Garrison | Spotted Striker 19980 | -5/Garrison | System corruption reached 30% 19981 | -5/Garrison | Entered Factory 20157 | -5/Factory | Fabricated Enh. Nova Cannon? 20281 | -5/Factory | First assault squad dispatched 20384 | -5/Factory | P-70 Sage assimilated allied Sentinel 6b 20481 | -5/Factory | Identified exit to Garrison 20481 | -5/Factory | Entered Garrison 20593 | -5/Garrison | Triggered checkpoint 20685 | -5/Garrison | Assimilated Y-64 Sentinel with FLK Orb 20689 | -5/Garrison | Assimilated Y-64 Sentinel with FLK Orb 20708 | -5/Garrison | Triggered checkpoint 20764 | -5/Garrison | Destroyed 7 combat bots 20943 | -5/Garrison | Spotted B-75 Beast 20945 | -5/Garrison | Spotted B-86 Titan 21041 | -5/Garrison | Rewired B-75 Beast 21108 | -5/Garrison | Discovered new exit (range 11) 21134 | -5/Garrison | Triggered checkpoint 21281 | -5/Garrison | Garrison Relay disabled 21530 | -5/Garrison | Discovered new exit (range 12) 21558 | -5/Garrison | Triggered checkpoint 21624 | -5/Garrison | Expanded RIF knowledge: Zone Cloak 21638 | -5/Garrison | Garrison Relay disabled 21890 | -5/Garrison | Triggered checkpoint 21978 | -5/Garrison | Discovered new exit (range 10) 22082 | -5/Garrison | Triggered checkpoint 22128 | -5/Garrison | Triggered checkpoint 22135 | -5/Garrison | Garrison Relay disabled 22512 | -5/Garrison | Triggered checkpoint 22537 | -5/Garrison | Garrison Relay disabled 22726 | -5/Garrison | Entered Factory 22726 | -4/Factory | Evolved 2 slots: Utility x2 22775 | -4/Factory | Found Prototype Processor 22775 | -4/Factory | Identified Exp. Terrain Scan Processor 22947 | -4/Factory | Discovered new exit (range 20) 22947 | -4/Factory | Discovered new exit (range 16) 22947 | -4/Factory | Identified exit to Research 23349 | -4/Factory | Repaired Adv. Cooling System 23383 | -4/Factory | Lost 5 parts (2p1n1u1w) 23468 | -4/Factory | Assimilated H-71 Marshal with FLK Orb 23498 | -4/Factory | Lost 4 parts (1n2u1w) 23726 | -4/Factory | First assault squad dispatched 23731 | -4/Factory | Noticed a derelict Sapper rigging charges 23761 | -4/Factory | Identified exit to Garrison 23761 | -4/Factory | Entered Garrison 23820 | -4/Garrison | Triggered checkpoint 23844 | -4/Garrison | Garrison Relay disabled 23926 | -4/Garrison | Triggered checkpoint 24015 | -4/Garrison | Spotted B-86 Titan 24015 | -4/Garrison | Triggered checkpoint 24033 | -4/Garrison | Assimilated B-86 Titan with FLK Orb 24033 | -4/Garrison | Triggered checkpoint 24100 | -4/Garrison | Triggered checkpoint 24142 | -4/Garrison | Spotted B-90 Cyclops 24159 | -4/Garrison | Rewired B-75 Beast 24196 | -4/Garrison | Triggered checkpoint 24247 | -4/Garrison | Garrison Relay disabled 24280 | -4/Garrison | Discovered new exit (range 11) 24359 | -4/Garrison | Found Hvy. Reflective Plating 24419 | -4/Garrison | Discovered new exit (range 13) 24430 | -4/Garrison | Core integrity fell below 50% 24483 | -4/Garrison | Triggered checkpoint 24528 | -4/Garrison | System corruption reached 10% 24555 | -4/Garrison | Garrison Relay disabled 24626 | -4/Garrison | Expanded RIF knowledge: Threat Obfuscation 24876 | -4/Garrison | Garrison Relay disabled 24907 | -4/Garrison | Triggered checkpoint 24922 | -4/Garrison | Triggered checkpoint 24952 | -4/Garrison | Triggered checkpoint 25121 | -4/Garrison | Garrison Relay disabled 25225 | -4/Garrison | Discovered new exit (range 15) 25263 | -4/Garrison | Entered Factory 25513 | -4/Factory | First assault squad dispatched 25639 | -4/Factory | Core integrity fell below 20% 25698 | -4/Factory | Lost 3 parts (3n) 26165 | -4/Factory | Destroyed by P-70 Sage with Tesla Rifle Last Messages --------------- 4x Lgt. Antimatter Cannon 26087_ ALERT: Hostiles spotted, dispatching reinforcements to Terminal F020. 26094_ EX0NZGRBJUB%PKCDS3Y: 26103_ R-10 Processor collects Lgt. Antimatter Cannon. 26114_ System corrupted: Energy discharge (-62). 26129_ System corrupted: Matter fused (-6). 26144_ System corrupted: Energy discharge (-51). 26156_ Connecting with Terminal... 26156_ Current location identified: Factory 26157_ Imp. Medium Armor Plating destroyed. 26161_ P-70 Sage destroyed. 26163_ System corrupted: FCS attempts to trigger Matter Neutralizer. 26163_ System corrupted: Matter Neutralizer misfires. 26163_ Terminal disabled. 26163_ A-15 Conveyor bypasses jamming via Unknown Processor. 26163_ A-15 Conveyor calls for reinforcements. 26163_ ALERT: Hostile activity reported, dispatching reinforcements to area. 26163_ A-15 Conveyor distress signal jammed. Map ----- +----------------------------------------------------+ | ?????????????????????????????????????????????????? | | ?????????????????????????????????????????????????? | | ?????????????????????????????????????????????????? | | ?????????????????????????????????????????????????? | | ?????????????????????????????????????????????????? | | ?????????????????????????????????????????????????? | | ?????????????????????????????????????????????????? | | ?????????????????????????????????????????????????? | | ??????? ?????????????????????????????????????????? | | ??????? ????????????????????????????????????????? | | ?######+#####??????????#####?????????????????????? | | ?# #????????# ? ??????????????????? | | ?# #????????# ?????????????????? | | ## #????????# """ """?????????????????? | | # #????????# """ """ ????????????????? | | # #????????# """ """ ?? #????????????? | | # #????????# #????????????? | | # #?######## """ """ #????????????? | | # #?# / """ """ #????????????? | | # ??# ###### """ """ #????????????? | | ## ????# #????# #????????????? | | ## ??????# #????# #????????????? | | #?? ????????# #????# * #????????????? | | #####+########### #????###+##########????????????? | | ] #????###%###???????????????????? | | #????# @=A #???????????????????? | | #????# " #???????????????????? | | "" p "?????????????????? | | ######################## # """???????????????? | | ???????????????????????# #?"""???????????????? | | ???????????????????????#######???"???????????????? | | ?????????????????????????????????????????????????? | | ?????????????????????????????????????????????????? | | ?????????????????????????????????????????????????? | | | | | | | | | | | | | | | | | | | | | | | | | | | | | | | | | +----------------------------------------------------+ Best States ------------- Heat Dissipation 98 Coolant Potential 100 Energy Generation 38 Energy Capacity 555 Matter Stores 300 Matter Capacity 300 Sight Range 16 Terrain Scan Density 1010 Jamming Range 16 Base Temperature (-) 200 Armor Coverage 1200 Resistance: TH 30 Utility Shielding 66 Evasion (%) 40 Targeting Accuracy 8 Core Analysis 6 Recoil Reduction 4 Relay Coupler Types 6 Relay Coupler Value 132 Authchip Count 2 Item Schematics ----------------- Huge Storage Unit | -10/Materials | Hacked Robot Schematics ------------------ None Fabricated ------------ E-15 Imp | x2 | -6/Factory | Preloaded Enh. Nova Cannon | x1 | -5/Factory | Preloaded Alien Tech Used ----------------- None Achievements -------------- None Challenges ------------ None Game ------ Seed HardlightCannonDetonator Manual? 0 Play Time 02:37:44 Cumulative 829.7 hours Start 2023.07.31 @ 18:52:02 End 2023.07.31 @ 22:16:31 Sessions 1 Manual Loads 0 Difficulty Rogue Special Mode None Game No. 717 Rogue 717 Adventurer 0 Explorer 0 Win Type - Total 40 Types 14/7/8/1/1/1/6/1/1 Lore% 93 Gallery% 96 Achievement% 82 Wizard Run 0 Options --------- ASCII 0 Keyboard 0 Movement Mouse Keybinds 1 Fullscreen 2 Font 24/Smallcaps Map View 76x50 Tactical HUD 1 Map Filters NONE Filters NONE Steam 1 RUN: 9b7cc3c5-40e0-4c74-9845-861ff9adfbc0